bitfinex/quotes_SOLUSD_20250506
["timestamp","ask_amount","ask_price","bid_price","bid_amount"]
[1746544336268,14.52,142.88,142.85,33.05244243]
[1746544337282,21.51904218,142.88,142.85,33.05244243]
[1746544339276,54.57148461,142.88,142.84,33.05244243]
[1746544339677,21.51904218,142.88,142.84,33.05244243]
[1746544339870,21.51904218,142.88,142.85,33.05244243]
[1746544340270,21.51904218,142.88,142.84,33.05244243]
[1746544340863,14.52,142.88,142.85,33.05244243]
[1746544341077,14.52,142.88,142.86,33.05244243]
[1746544341566,14.54,142.93,142.87,33.05244243]
[1746544341767,47.51244243,142.92,142.88,33.05244243]
[1746544341987,33.05244243,142.92,142.88,33.05244243]
[1746544342189,14.46,142.91,142.88,33.05244243]
[1746544342695,14.46,142.91,142.87,13.11962034]
[1746544342696,6.99692135,142.92,142.89,33.05244243]
[1746544342889,21.47692135,142.92,142.89,33.05244243]
[1746544343192,21.47692135,142.92,142.88,33.05244243]
[1746544343383,21.45692135,142.92,142.88,33.05244243]
[1746544343886,54.50936378,142.92,142.87,39.17294243]
[1746544344194,33.05244243,142.89,142.84,26.0]
[1746544344405,33.05244243,142.89,142.85,33.05244243]
[1746544344582,33.05244243,142.9,142.86,33.05244243]
[1746544345487,33.05244243,142.89,142.85,33.05244243]
[1746544345895,6.99888017,142.88,142.85,33.05244243]
[1746544346283,14.46,142.87,142.85,33.05244243]
[1746544346793,14.46,142.87,142.8,20.825]
[1746544346794,33.05244243,142.86,142.8,20.825]
[1746544346997,14.46,142.87,142.81,33.05244243]
[1746544346998,33.05244243,142.85,142.81,33.05244243]
[1746544347193,33.05244243,142.86,142.82,33.05244243]
[1746544347807,6.99986,142.86,142.82,33.05244243]
[1746544347982,14.46,142.87,142.85,33.05244243]
[1746544348476,21.45941722,142.87,142.85,33.05244243]
[1746544348902,21.45941722,142.87,142.84,33.05244243]
[1746544349412,33.05244243,142.86,142.82,33.05244243]
[1746544349922,40.05279244,142.85,142.8,20.825]
[1746544350075,33.05244243,142.84,142.8,6.285]
[1746544350410,33.05244243,142.84,142.8,39.33744243]
[1746544350881,33.05244243,142.82,142.78,33.05244243]
[1746544351086,14.48,142.81,142.78,33.05244243]
[1746544351294,14.48,142.81,142.79,33.05244243]
[1746544352585,14.48,142.81,142.8,33.05244243]
[1746544352800,14.08,142.81,142.79,33.05244243]
[1746544353285,14.08,142.81,142.8,33.05244243]
[1746544355178,14.08,142.81,142.8,40.05524355]
[1746544355505,14.46,142.85,142.8,40.05524355]
[1746544355802,14.46,142.85,142.83,33.05244243]
[1746544356585,21.46000928,142.86,142.83,33.05244243]
[1746544356784,21.46000928,142.86,142.84,33.05244243]
[1746544356785,14.46,142.86,142.84,33.05244243]
[1746544357105,21.45997392,142.86,142.83,33.05244243]
[1746544359904,14.46,142.86,142.85,33.05244243]
[1746544360210,21.41909155,142.88,142.85,33.05244243]
[1746544361401,6.99790062,142.9,142.82,32.6606]
[1746544361593,14.42,142.88,142.82,32.6606]
[1746544361903,14.42,142.89,142.86,33.05244243]
[1746544362586,54.49034305,142.9,142.84,7.0006056]
[1746544362794,33.05244243,142.89,142.85,33.05244243]
[1746544363306,33.05244243,142.88,142.84,33.05244243]
[1746544364207,14.44,142.88,142.84,33.05244243]
[1746544364505,21.43903344,142.88,142.84,33.05244243]
[1746544365085,21.43903344,142.88,142.85,33.05244243]
[1746544365612,21.43903344,142.88,142.86,33.05244243]
[1746544366107,21.43888915,142.88,142.86,33.05244243]
[1746544366289,14.44,142.88,142.86,33.05244243]
[1746544366605,14.44,142.88,142.87,33.05244243]
[1746544366996,14.44,142.88,142.86,33.05244243]
[1746544367194,14.44,142.88,142.87,33.05244243]
[1746544372103,14.38,142.9,142.87,33.05244243]
[1746544372306,14.38,142.9,142.88,33.05244243]
[1746544372811,21.3782012,142.9,142.85,7.00012811]
[1746544372992,21.3782012,142.9,142.84,7.00069773]
[1746544373192,21.3782012,142.9,142.87,33.05244243]
[1746544374313,6.9982012,142.9,142.87,33.05244243]
[1746544374519,14.36,142.9,142.89,33.05244243]
[1746544374691,6.99704423,142.92,142.89,33.05244243]
[1746544374891,21.35704423,142.92,142.9,33.05244243]
[1746544375625,14.36,142.92,142.9,33.05244243]
[1746544377103,33.05244243,142.93,142.89,33.05244243]
[1746544377305,47.41244243,142.93,142.89,33.05244243]
[1746544377611,14.36,142.93,142.9,33.05244243]
[1746544377793,6.99701469,142.92,142.9,33.05244243]
[1746544377993,14.34,142.93,142.9,33.05244243]
[1746544379223,21.3367905,142.93,142.9,33.05244243]
[1746544379725,21.3367905,142.93,142.9,20.61569565]
[1746544380313,21.3367905,142.93,142.88,6.99875975]
[1746544380314,21.3367905,142.93,142.91,20.61569565]
[1746544380507,21.33644239,142.93,142.91,20.61569565]
[1746544380701,21.33644239,142.93,142.88,6.99875975]
[1746544381015,21.33644239,142.93,142.9,20.61569565]
[1746544382918,41.95213804,142.93,142.87,8.1513]
[1746544383102,20.61569565,142.92,142.87,8.1513]
[1746544383309,20.61569565,142.92,142.88,20.61569565]
[1746544383815,6.99741095,142.91,142.88,20.61569565]
[1746544384000,27.6131066,142.91,142.87,6.4929]
[1746544384206,27.6131066,142.91,142.86,14.46]
[1746544384431,6.99741095,142.91,142.88,20.61569565]
[1746544384724,51.9,142.92,142.9,20.61569565]
[1746544384894,14.34,142.93,142.91,20.61569565]
[1746544385520,14.34,142.94,142.92,20.61569565]
[1746544386228,21.33597323,142.94,142.92,20.61569565]
[1746544386428,21.33597323,142.94,142.91,20.61569565]
[1746544388431,6.99563148,142.95,142.91,20.61569565]
[1746544388613,21.33563148,142.95,142.92,20.61569565]
[1746544388927,41.95132713,142.95,142.91,20.61569565]
[1746544389630,21.33563148,142.95,142.92,20.61569565]
[1746544390032,21.31563148,142.95,142.92,20.61569565]
[1746544391031,41.93132713,142.95,142.91,20.61569565]
[1746544391829,20.61569565,142.94,142.89,6.3881]
[1746544392127,20.61569565,142.94,142.9,20.61569565]
[1746544392632,20.61569565,142.92,142.88,1.6124]
[1746544392811,20.61569565,142.92,142.88,20.61569565]
[1746544393006,20.61569565,142.91,142.87,46.61569565]
[1746544393809,20.61569565,142.92,142.87,46.61569565]
[1746544394130,20.61569565,142.92,142.88,20.61569565]
[1746544394632,51.9,142.94,142.9,20.61569565]
[1746544394812,14.32,142.95,142.92,20.61569565]
[1746544395137,14.32,142.95,142.93,20.61569565]
[1746544396333,32.99457353,142.97,142.94,20.61569565]
[1746544396535,47.31457353,142.97,142.94,20.61569565]
[1746544397034,6.99418451,142.98,142.94,27.6115714]
[1746544397230,14.32,142.97,142.96,20.61569565]
[1746544397541,14.32,142.97,142.95,20.61569565]
[1746544397734,14.32,142.97,142.94,20.61569565]
[1746544398111,14.32,142.97,142.95,20.61569565]
[1746544398821,6.99405128,142.98,142.95,20.61569565]
[1746544399535,41.9293925,142.99,142.95,20.61569565]
[1746544399836,21.31369685,142.99,142.95,20.61569565]
[1746544400008,41.9293925,142.99,142.95,20.61569565]
[1746544400208,27.6093925,142.99,142.95,20.61569565]
[1746544400737,6.99369685,142.99,142.96,20.61569565]
[1746544401238,21.31369685,142.99,142.96,20.61569565]
[1746544401539,41.9293925,142.99,142.95,20.61569565]
[1746544402637,41.9293925,142.99,142.94,20.61569565]
[1746544403137,20.61569565,142.98,142.94,20.61569565]
[1746544403926,21.31369685,142.99,142.95,20.61569565]
[1746544404127,21.31369685,142.99,142.96,20.61569565]
[1746544404463,20.61569565,143.02,142.98,20.61569565]
[1746544404632,6.99222486,143.02,142.99,20.61569565]
[1746544404939,66.22,143.03,143.0,20.61569565]
[1746544405437,14.32,143.03,143.0,20.61569565]
[1746544405739,14.32,143.03,143.0,32.93756898]
[1746544406035,14.32,143.04,143.01,32.93756898]
[1746544406237,14.32,143.04,142.98,26.0]
[1746544406542,14.32,143.04,143.01,32.93756898]
[1746544407446,54.24825162,143.05,143.01,32.93756898]
[1746544408147,32.93756898,143.04,143.0,32.93756898]
[1746544408366,6.99154023,143.03,143.0,32.93756898]
[1746544409053,6.99154023,143.03,143.01,32.93756898]
[1746544409260,6.99154023,143.03,142.98,26.0]
[1746544409459,6.99154023,143.03,143.0,32.93756898]
[1746544410559,39.92862043,143.04,143.01,32.93756898]
[1746544411454,6.99105145,143.04,143.01,32.93756898]
[1746544412550,6.99105145,143.04,142.98,32.99392658]
[1746544412739,39.92862043,143.04,143.0,32.93756898]
[1746544413565,6.99105145,143.04,143.01,32.93756898]
[1746544414068,21.3107637,143.05,143.02,32.93756898]
[1746544414256,51.9,143.06,143.03,32.93756898]
[1746544414761,58.89012659,143.06,143.04,32.93756898]
[1746544414972,6.99012659,143.06,143.03,32.93756898]
[1746544415669,39.92769557,143.06,143.02,32.93756898]
[1746544416071,32.93756898,143.04,143.01,34.46686898]
[1746544416276,32.93756898,143.04,143.01,32.93756898]
[1746544416666,24.46531182,143.06,143.01,32.93756898]
[1746544416847,6.99105145,143.04,143.01,32.93756898]
[1746544421773,6.99105145,143.04,143.02,32.93756898]
[1746544422077,14.32,143.05,143.01,6.99206924]
[1746544422294,21.31064784,143.05,143.03,32.93756898]
[1746544422467,21.31064784,143.05,143.02,32.93756898]
[1746544423778,21.31064784,143.05,143.0,6.99285231]
[1746544424068,21.31064784,143.05,143.02,32.93756898]
[1746544424489,14.32,143.05,143.03,32.93756898]
[1746544424783,14.32,143.07,143.04,32.93756898]
[1746544425075,21.30919364,143.08,143.05,32.93756898]
[1746544425267,6.98919364,143.08,143.05,32.93756898]
[1746544425871,6.98919364,143.08,143.05,20.57125166]
[1746544426649,27.5604453,143.08,143.04,1.6236]
[1746544426849,27.5604453,143.08,143.04,22.19485166]
[1746544427365,20.57125166,143.07,143.03,20.57125166]
[1746544427593,6.989097,143.08,143.03,20.57125166]
[1746544427790,20.57125166,143.07,143.03,20.57125166]
[1746544428273,27.56034866,143.08,143.04,20.57125166]
[1746544428577,6.989097,143.08,143.04,20.57125166]
[1746544428757,27.56034866,143.08,143.04,20.57125166]
[1746544429882,6.989097,143.08,143.04,20.57125166]
[1746544430174,6.989097,143.08,143.05,20.57125166]
[1746544430951,6.989097,143.08,143.04,6.99096687]
[1746544431152,6.989097,143.08,143.04,20.57125166]
[1746544431153,27.56034866,143.08,143.04,20.57125166]
[1746544432589,27.56034866,143.08,143.02,6.99202908]
[1746544432754,27.56034866,143.08,143.04,20.57125166]
[1746544433572,6.989097,143.08,143.03,6.99146162]
[1746544433876,6.989097,143.08,143.04,20.57125166]
[1746544433877,27.56034866,143.08,143.04,20.57125166]
[1746544434378,6.989097,143.08,143.04,20.57125166]
[1746544434586,27.56034866,143.08,143.04,20.57125166]
[1746544435965,20.57125166,143.07,143.03,27.56271328]
[1746544436166,27.56034866,143.08,143.04,20.57125166]
[1746544436378,21.32884247,143.09,143.04,20.57125166]
[1746544436680,20.57125166,143.08,143.04,20.57125166]
[1746544436875,34.91125166,143.09,143.05,20.57125166]
[1746544437053,14.34,143.09,143.06,20.57125166]
[1746544437250,6.98837579,143.1,143.06,20.57125166]
[1746544437450,6.98714365,143.12,143.07,20.57125166]
[1746544437681,34.91125166,143.11,143.07,20.57125166]
[1746544438284,20.57125166,143.11,143.07,20.57125166]
[1746544438481,27.55921217,143.11,143.07,20.57125166]
[1746544438785,41.87921217,143.11,143.07,20.57125166]
[1746544441480,21.30796051,143.11,143.08,20.57125166]
[1746544441777,20.57125166,143.12,143.06,6.9898748]
[1746544441997,20.57125166,143.11,143.07,20.57125166]
[1746544442198,20.57125166,143.11,143.08,20.57125166]
[1746544442390,51.9,143.13,143.09,20.57125166]
[1746544442680,34.89125166,143.12,143.08,20.57125166]
[1746544442983,6.98860856,143.09,143.06,26.0]
[1746544443168,27.55949177,143.1,143.07,20.57125166]
[1746544443482,27.55909451,143.11,143.07,20.57125166]
[1746544443854,6.98784285,143.11,143.07,20.57125166]
[1746544444056,27.55909451,143.11,143.07,20.57125166]
[1746544444387,27.55909451,143.11,143.06,26.0]
[1746544444388,6.98784285,143.11,143.09,20.57125166]
[1746544444685,6.98784285,143.11,143.08,20.57125166]
[1746544445085,27.55909451,143.11,143.08,20.57125166]
[1746544445479,27.55909451,143.11,143.06,26.0]
[1746544445665,20.57125166,143.1,143.06,20.57125166]
[1746544445874,6.98784285,143.11,143.05,20.57125166]
[1746544446076,20.57125166,143.09,143.06,20.57125166]
[1746544446273,20.57125166,143.1,143.06,20.57125166]
[1746544447009,6.98860856,143.09,143.06,20.57125166]
[1746544447376,6.98860856,143.09,143.04,40.83433228]
[1746544447783,6.98860856,143.09,143.05,20.57125166]
[1746544448803,6.98860856,143.09,143.06,20.57125166]
[1746544449488,6.98860856,143.09,143.04,40.83429825]
[1746544449676,6.98860856,143.09,143.06,20.57125166]
[1746544450069,6.98860856,143.09,143.04,40.83429825]
[1746544450495,6.98860856,143.09,143.06,20.57125166]
[1746544451301,6.98812019,143.1,143.06,20.57125166]
[1746544451498,27.55937185,143.1,143.06,20.57125166]
[1746544452071,20.57125166,143.07,143.03,14.3]
[1746544452274,34.87125166,143.07,143.03,34.87125166]
[1746544452799,14.3,143.07,143.04,20.57125166]
[1746544453185,6.99007409,143.06,143.04,20.57125166]
[1746544453805,6.99007409,143.06,143.03,20.57125166]
[1746544454010,6.99007409,143.06,143.01,26.0]
[1746544454011,27.56132575,143.06,143.02,20.57125166]
[1746544454695,27.56132575,143.06,143.01,46.57125166]
[1746544454895,20.57125166,143.04,143.0,8.2289]
[1746544455291,27.56255228,143.04,143.0,28.80015166]
[1746544455491,20.57125166,143.05,143.01,20.57125166]
[1746544455704,27.56132575,143.06,143.02,20.57125166]
[1746544456006,27.56132575,143.06,143.01,20.57125166]
[1746544456007,20.57125166,143.05,143.01,20.57125166]
[1746544456909,27.56221325,143.05,143.01,20.57125166]
[1746544457808,27.56221325,143.05,143.0,15.22176554]
[1746544457983,20.57125166,143.04,143.0,27.20965166]
[1746544458610,20.57125166,143.04,143.0,34.20262603]
[1746544459524,20.57125166,143.04,143.0,27.20965166]
[1746544459892,20.57125166,143.04,143.0,34.20262443]
[1746544460191,27.5624026,143.04,143.0,27.20965166]
[1746544461499,20.57125166,143.03,142.99,14.32]
[1746544461711,14.32,143.02,142.98,46.57125166]
[1746544462026,41.88356609,143.02,142.98,46.57125166]
[1746544462923,41.88356609,143.02,142.98,20.57125166]
[1746544463222,21.31231443,143.02,142.99,20.57125166]
[1746544463900,14.32,143.02,142.99,20.57125166]
[1746544464102,14.32,143.02,143.0,20.57125166]
[1746544464994,6.9903065,143.06,143.01,20.57125166]
[1746544465217,14.32,143.07,143.03,20.57125166]
[1746544465520,20.57125166,143.07,143.03,20.57125166]
[1746544465722,34.89125166,143.07,143.03,20.57125166]
[1746544465902,14.32,143.07,143.03,20.57125166]
[1746544466218,41.88103394,143.07,143.03,20.57125166]
[1746544468295,41.88103394,143.07,143.03,27.56270927]
[1746544468498,41.88103394,143.07,143.03,20.57125166]
[1746544468698,21.30978228,143.07,143.03,20.57125166]
[1746544468898,41.88103394,143.07,143.03,20.57125166]
[1746544469214,32.98882979,143.09,143.03,27.56274106]
[1746544469537,14.32,143.08,143.05,20.57125166]
[1746544469910,53.56008145,143.09,143.05,20.57125166]
[1746544470113,21.30918388,143.08,143.05,20.57125166]
[1746544470420,6.98918388,143.08,143.04,27.56228095]
[1746544470623,14.32,143.08,143.04,27.56228095]
[1746544471128,21.30912557,143.08,143.04,27.56228095]
[1746544471426,41.88037723,143.08,143.04,27.56228095]
[1746544471813,41.88037723,143.08,143.03,6.9913888]
[1746544472117,27.56037723,143.08,143.04,20.57125166]
[1746544472322,41.88037723,143.08,143.04,20.57125166]
[1746544473429,41.88037723,143.08,143.04,27.56223612]
[1746544473626,14.32,143.08,143.04,27.56223612]
[1746544473827,53.56004437,143.09,143.04,27.56223612]
[1746544474038,14.32,143.08,143.04,27.56223612]
[1746544474409,14.32,143.08,143.05,20.57125166]
[1746544474604,20.57125166,143.08,143.04,27.56223612]
[1746544475319,47.30875821,143.09,143.04,27.56223612]
[1746544475518,20.57125166,143.08,143.04,27.56223612]
[1746544475928,20.57125166,143.07,143.03,27.56262924]
[1746544476129,20.57125166,143.08,143.04,20.57125166]
[1746544476331,67.88009536,143.09,143.05,20.57125166]
[1746544476540,47.3088437,143.09,143.05,20.57125166]
[1746544476945,20.57125166,143.1,143.05,20.57125166]
[1746544477123,6.98826396,143.1,143.07,20.57125166]
[1746544477324,21.30826396,143.1,143.07,20.57125166]
[1746544477642,34.89125166,143.11,143.07,27.56077716]
[1746544477841,21.30767699,143.11,143.08,20.57125166]
[1746544478141,14.32,143.11,143.08,20.57125166]
[1746544478514,27.55802413,143.13,143.08,20.57125166]
[1746544478723,41.85802413,143.13,143.09,20.57125166]
[1746544479213,21.28677247,143.13,143.08,20.57125166]
[1746544479417,41.85802413,143.13,143.09,20.57125166]
[1746544480426,20.57125166,143.13,143.09,27.55976004]
[1746544480654,27.55792764,143.13,143.09,20.57125166]
[1746544481758,41.85751243,143.14,143.09,27.55946669]
[1746544481945,27.55751243,143.14,143.1,20.57125166]
[1746544482128,41.85751243,143.14,143.1,20.57125166]
[1746544482626,34.87125166,143.14,143.1,20.57125166]
[1746544483647,34.87125166,143.14,143.1,27.55929837]
[1746544484056,41.85757113,143.14,143.09,6.98839305]
[1746544484252,41.85757113,143.14,143.1,20.57125166]
[1746544484642,27.55757113,143.14,143.1,20.57125166]
[1746544485134,27.55757113,143.14,143.1,27.55931443]
[1746544485334,6.98631947,143.14,143.1,27.55931443]
[1746544485649,20.57125166,143.14,143.1,27.55931443]
[1746544485858,20.57125166,143.15,143.11,20.57125166]
[1746544486029,21.28440068,143.18,143.13,20.57125166]
[1746544486234,6.9827526,143.21,143.14,20.57125166]
[1746544486435,20.57125166,143.18,143.14,20.57125166]
[1746544486835,14.3,143.2,143.14,20.57125166]
[1746544487254,20.57125166,143.18,143.14,20.57125166]
[1746544487456,14.3,143.2,143.14,27.55741655]
[1746544487960,20.57125166,143.18,143.14,27.55741655]
[1746544488961,27.55550963,143.18,143.14,20.57125166]
[1746544489256,20.57125166,143.17,143.13,20.57125166]
[1746544489430,20.57125166,143.17,143.13,27.55790123]
[1746544490460,27.55550963,143.18,143.14,27.55737869]
[1746544491765,27.55550963,143.18,143.14,20.57125166]
[1746544492342,6.98408442,143.19,143.14,27.55724921]
[1746544492552,27.55533608,143.19,143.15,20.57125166]
[1746544492866,27.55533608,143.19,143.14,20.57125166]
[1746544493550,6.98408442,143.19,143.13,6.98665548]
[1746544493752,27.55533608,143.19,143.15,20.57125166]
[1746544494661,21.28346968,143.2,143.16,20.57125166]
[1746544494869,20.57125166,143.19,143.16,20.57125166]
[1746544495051,41.85472134,143.2,143.16,20.57125166]
[1746544495363,14.3,143.22,143.16,20.57125166]
[1746544495551,41.85422696,143.21,143.17,20.57125166]
[1746544495950,14.3,143.21,143.18,20.57125166]
[1746544496148,27.55370422,143.22,143.18,20.57125166]
[1746544496361,27.55370422,143.22,143.14,32.94964886]
[1746544496362,21.28245256,143.22,143.19,20.57125166]
[1746544496866,67.85318778,143.23,143.19,20.57125166]
[1746544497068,47.28193612,143.23,143.19,20.57125166]
[1746544497267,53.55318778,143.23,143.19,20.57125166]
[1746544497472,67.85318778,143.23,143.19,20.57125166]
[1746544497841,67.85318778,143.23,143.19,27.55495972]
[1746544498173,47.28193612,143.23,143.19,27.55495972]
[1746544498347,20.57125166,143.23,143.19,27.55495972]
[1746544498550,34.87125166,143.23,143.19,27.55495972]
[1746544498867,14.3,143.23,143.19,27.55495972]
[1746544499082,34.87125166,143.23,143.18,6.98398085]
[1746544499276,34.87125166,143.23,143.19,20.57125166]
[1746544500371,34.87125166,143.23,143.19,27.55470146]
[1746544500579,14.3,143.23,143.2,20.57125166]
[1746544500950,27.55309669,143.23,143.19,27.55470146]
[1746544501268,27.55309669,143.23,143.19,20.57125166]
[1746544501776,20.57125166,143.22,143.18,20.57125166]
[1746544501976,20.57125166,143.22,143.17,7.7294]
[1746544502169,20.57125166,143.21,143.17,28.30065166]
[1746544502483,6.98290657,143.21,143.18,20.57125166]
[1746544503973,27.55373419,143.22,143.18,20.57125166]
[1746544504149,27.55318964,143.23,143.19,20.57125166]
[1746544504348,20.57125166,143.23,143.19,20.57125166]
[1746544504550,43.44963567,143.27,143.17,14.71405805]
[1746544504551,1.6256,143.29,143.22,20.57125166]
[1746544504757,20.57125166,143.27,143.23,20.57125166]
[1746544504964,14.3,143.27,143.23,20.57125166]
[1746544505168,34.87125166,143.27,143.23,20.57125166]
[1746544506074,34.87125166,143.27,143.21,6.98254522]
[1746544506279,6.97974185,143.28,143.24,20.57125166]
[1746544506586,14.3,143.27,143.24,20.57125166]
[1746544506779,20.57125166,143.27,143.23,20.57125166]
[1746544506955,41.85099351,143.28,143.24,20.57125166]
[1746544508865,20.57125166,143.27,143.22,15.19805883]
[1746544509074,27.55134348,143.27,143.23,20.57125166]
[1746544509469,20.57125166,143.24,143.19,15.9053]
[1746544509674,34.87125166,143.23,143.19,22.88900463]
[1746544509973,34.87125166,143.23,143.19,43.46025629]
[1746544510175,34.87125166,143.23,143.19,36.47655166]
[1746544510876,34.87125166,143.23,143.19,15.9053]
[1746544511082,41.85324912,143.23,143.19,36.47655166]
[1746544511683,41.85324912,143.23,143.19,43.46026354]
[1746544512071,41.85324912,143.23,143.19,36.47655166]
[1746544512992,21.28199746,143.23,143.19,36.47655166]
[1746544513284,20.57125166,143.22,143.19,14.28]
[1746544513667,20.57125166,143.21,143.17,46.57125166]
[1746544514085,20.57125166,143.21,143.17,53.55583795]
[1746544514275,20.57125166,143.22,143.18,20.57125166]
[1746544515198,20.57125166,143.22,143.18,27.55536353]
[1746544516377,21.28199746,143.23,143.18,27.55536353]
[1746544516570,14.3,143.23,143.21,20.57125166]
[1746544516765,14.28,143.25,143.22,20.57125166]
[1746544516961,27.55121866,143.27,143.23,20.57125166]
[1746544517162,14.28,143.26,143.24,20.57125166]
[1746544517582,27.55073378,143.28,143.24,20.57125166]
[1746544517896,41.83073378,143.28,143.24,20.57125166]
[1746544518180,20.57125166,143.27,143.23,20.57125166]
[1746544518389,34.85125166,143.27,143.23,20.57125166]
[1746544518689,34.85125166,143.27,143.23,27.55275416]
[1746544518867,41.8311755,143.27,143.23,20.57125166]
[1746544519066,20.57125166,143.26,143.21,27.55387281]
[1746544519486,20.57125166,143.25,143.2,22.031]
[1746544519688,20.57125166,143.24,143.2,42.60225166]
[1746544519996,20.57125166,143.24,143.21,20.57125166]
[1746544520688,20.57125166,143.23,143.2,14.28]
[1746544521986,20.57125166,143.22,143.17,39.51024259]
[1746544522299,34.85125166,143.22,143.18,20.57125166]
[1746544522602,14.28,143.22,143.2,20.57125166]
[1746544522787,14.28,143.22,143.17,13.51018639]
[1746544522985,34.85125166,143.22,143.18,20.57125166]
[1746544524200,41.8335334,143.22,143.18,20.57125166]
[1746544524389,34.85125166,143.22,143.18,20.57125166]
[1746544524579,34.85125166,143.22,143.18,27.55501916]
[1746544524983,20.57125166,143.21,143.17,13.51040858]
[1746544525183,20.57125166,143.21,143.17,27.09705166]
[1746544525493,20.57125166,143.21,143.17,34.08174022]
[1746544526003,20.57125166,143.21,143.18,20.57125166]
[1746544527680,20.57125166,143.19,143.16,14.28]
[1746544528082,20.57125166,143.18,143.14,53.55712882]
[1746544528386,6.98298222,143.21,143.15,20.57125166]
[1746544528387,20.57125166,143.19,143.15,20.57125166]
[1746544528584,20.57125166,143.18,143.14,53.55712882]
[1746544529001,20.57125166,143.19,143.15,20.57125166]
[1746544529634,27.55513774,143.19,143.14,32.98587716]
[1746544529791,27.55513774,143.19,143.15,20.57125166]
[1746544530691,6.9827526,143.21,143.16,20.57125166]
[1746544530893,20.57125166,143.19,143.15,20.57125166]
[1746544531298,20.57125166,143.19,143.14,32.98587716]
[1746544531479,20.57125166,143.19,143.15,20.57125166]
[1746544531678,20.57125166,143.19,143.15,27.5566788]
[1746544532216,20.57125166,143.19,143.15,6.98542714]
[1746544532698,20.57125166,143.19,143.13,8.2525]
[1746544532699,20.57125166,143.18,143.13,8.2525]
[1746544532902,20.57125166,143.17,143.13,35.81019226]
[1746544533081,20.57125166,143.17,143.13,34.16529226]
[1746544533588,41.83599392,143.17,143.13,34.16529226]
[1746544534402,34.85125166,143.17,143.13,34.16529226]
[1746544534589,34.85125166,143.17,143.14,20.57125166]
[1746544534904,14.28,143.17,143.14,20.57125166]
[1746544535313,14.28,143.17,143.15,20.57125166]
[1746544535788,14.28,143.17,143.14,27.55713727]
[1746544536202,14.28,143.17,143.15,20.57125166]
[1746544537793,14.28,143.17,143.14,20.57125166]
[1746544538110,14.28,143.17,143.14,27.55723729]
[1746544538308,14.28,143.17,143.15,20.57125166]
[1746544540021,14.28,143.17,143.15,27.55685452]
[1746544540716,14.28,143.17,143.16,20.57125166]
[1746544541897,14.28,143.17,143.14,6.98616738]
[1746544542214,14.28,143.17,143.15,20.57125166]
[1746544543191,14.28,143.17,143.16,20.57125166]
[1746544544818,14.28,143.17,143.15,27.55672412]
[1746544545517,14.28,143.17,143.15,20.57125166]
[1746544546010,14.28,143.17,143.14,27.55720607]
[1746544548122,14.28,143.17,143.15,20.57125166]
[1746544551401,14.28,143.17,143.14,27.55720819]
[1746544551921,14.28,143.17,143.15,20.57125166]
[1746544554521,14.28,143.17,143.14,27.55720819]
[1746544554907,14.28,143.17,143.14,20.57125166]
[1746544555104,20.57125166,143.16,143.12,14.28]
[1746544555308,20.57125166,143.15,143.11,20.57125166]
[1746544555613,27.55679529,143.16,143.12,20.57125166]
[1746544555792,6.98554363,143.16,143.12,20.57125166]
[1746544555997,41.83604803,143.17,143.13,20.57125166]
[1746544559914,51.9,143.19,143.15,20.57125166]
[1746544560113,14.28,143.18,143.16,20.57125166]
[1746544560321,47.2634696,143.2,143.17,20.57125166]
[1746544560741,79.45419815,143.21,143.17,20.57125166]
[1746544560929,14.28,143.2,143.17,20.57125166]
[1746544561126,79.45419815,143.21,143.17,20.57125166]
[1746544561331,14.28,143.2,143.17,20.57125166]
[1746544561625,20.57125166,143.18,143.13,14.28]
[1746544561824,20.57125166,143.16,143.13,14.28]
[1746544562168,14.28,143.15,143.12,20.57125166]
[1746544562451,14.28,143.15,143.14,20.57125166]
[1746544562650,6.98286421,143.21,143.14,20.57125166]
[1746544562821,14.28,143.21,143.18,20.57125166]
[1746544563223,20.57125166,143.2,143.16,20.57125166]
[1746544563720,41.83426693,143.21,143.17,20.57125166]
[1746544564237,41.83426693,143.21,143.17,27.55592918]
[1746544564841,41.83426693,143.21,143.17,20.57125166]
[1746544565038,20.57125166,143.2,143.15,7.5531]
[1746544565254,20.57125166,143.18,143.14,34.85125166]
[1746544565448,20.57125166,143.19,143.15,20.57125166]
[1746544565952,6.98421567,143.18,143.15,20.57125166]
[1746544566248,27.55520906,143.19,143.15,20.57125166]
[1746544566452,20.57125166,143.18,143.14,41.83731654]
[1746544567734,19.57125166,143.18,143.14,41.83731654]
[1746544567935,27.55520906,143.19,143.15,20.57125166]
[1746544568343,20.57125166,143.19,143.15,20.57125166]
[1746544568652,14.28,143.21,143.18,20.57125166]
[1746544568968,51.9,143.22,143.19,20.57125166]
[1746544569148,14.28,143.23,143.2,20.57125166]
[1746544569346,14.28,143.24,143.21,20.57125166]